[Event "Senior Men Russian Championship 2022_1L"]
[Site "Olginka, Russia"]
[Date "2022.09.27"]
[Round "4.6"]
[White "Chudinovskikh, Alexander M"]
[Black "Rakov, Anatoly"]
[Result "1/2-1/2"]
[TimeControl "90min/40moves+30min/end+30sec increment per move starting from move 1"]
[WhiteTitle "IM"]
[WhiteFideId "4106083"]
[BlackFideId "4178793"]
[WhiteElo "2074"]
[BlackElo "1877"]

1. e4 {[%clk 01:30:16]} {[%emt 00:00:43]} d6 {[%clk 01:30:01]} {[%emt
00:00:59]} 2. d4 {[%clk 01:30:31]} {[%emt 00:00:15]} c6 {[%clk 01:28:56]}
{[%emt 00:01:36]} 3. Nf3 {[%clk 01:29:56]} {[%emt 00:01:04]} h6 {[%clk
01:26:35]} {[%emt 00:02:51]} 4. Bc4 {[%clk 01:29:16]} {[%emt 00:01:09]} Nf6
{[%clk 01:24:42]} {[%emt 00:02:23]} 5. e5 {[%clk 01:25:16]} {[%emt 00:04:31]}
dxe5 {[%clk 01:21:09]} {[%emt 00:04:03]} 6. Nxe5 {[%clk 01:25:33]} {[%emt
00:00:13]} e6 {[%clk 01:18:40]} {[%emt 00:02:59]} 7. O-O {[%clk 01:24:48]}
{[%emt 00:01:14]} Nbd7 {[%clk 01:17:51]} {[%emt 00:01:20]} 8. Nf3 {[%clk
01:16:06]} {[%emt 00:09:11]} Bd6 {[%clk 01:15:54]} {[%emt 00:02:26]} 9. c3
{[%clk 01:15:44]} {[%emt 00:00:53]} O-O {[%clk 01:15:04]} {[%emt 00:01:21]} 10.
Re1 {[%clk 01:15:58]} {[%emt 00:00:16]} Qc7 {[%clk 01:14:54]} {[%emt 00:00:40]}
11. Qe2 {[%clk 01:15:46]} {[%emt 00:00:42]} b5 {[%clk 01:11:50]} {[%emt
00:03:34]} 12. Bb3 {[%clk 01:15:56]} {[%emt 00:00:20]} Re8 {[%clk 01:06:37]}
{[%emt 00:05:43]} 13. Ne5 {[%clk 01:15:40]} {[%emt 00:00:45]} Nf8 {[%clk
01:07:03]} {[%emt 00:00:05]} 14. Nd2 {[%clk 01:13:58]} {[%emt 00:02:11]} Bb7
{[%clk 01:06:43]} {[%emt 00:00:50]} 15. Ndf3 {[%clk 01:11:24]} {[%emt
00:03:04]} a6 {[%clk 01:06:08]} {[%emt 00:01:06]} 16. a4 {[%clk 01:10:00]}
{[%emt 00:01:54]} Rac8 {[%clk 00:53:29]} {[%emt 00:13:08]} 17. Bf4 {[%clk
01:09:12]} {[%emt 00:01:17]} Nh5 {[%clk 00:50:13]} {[%emt 00:03:46]} 18. Bd2
{[%clk 01:08:46]} {[%emt 00:00:57]} Nf6 {[%clk 00:49:25]} {[%emt 00:01:18]} 19.
Rad1 {[%clk 01:08:10]} {[%emt 00:01:05]} Qb6 {[%clk 00:48:24]} {[%emt
00:01:32]} 20. Bc2 {[%clk 01:03:21]} {[%emt 00:05:19]} c5 {[%clk 00:48:20]}
{[%emt 00:00:35]} 21. dxc5 {[%clk 01:03:25]} {[%emt 00:00:26]} Bxc5 {[%clk
00:45:21]} {[%emt 00:03:28]} 22. axb5 {[%clk 01:02:21]} {[%emt 00:01:34]} axb5
{[%clk 00:44:53]} {[%emt 00:00:58]} 23. Bd3 {[%clk 01:02:02]} {[%emt 00:00:49]}
Rb8 {[%clk 00:42:31]} {[%emt 00:02:52]} 24. b4 {[%clk 00:59:51]} {[%emt
00:02:40]} Bd6 {[%clk 00:41:32]} {[%emt 00:01:28]} 25. Be3 {[%clk 00:59:39]}
{[%emt 00:00:42]} Qc7 {[%clk 00:41:37]} {[%emt 00:00:26]} 26. Bd4 {[%clk
00:58:47]} {[%emt 00:01:21]} Red8 {[%clk 00:40:32]} {[%emt 00:01:35]} 27. Bxb5
{[%clk 00:52:20]} {[%emt 00:06:58]} Nd5 {[%clk 00:32:31]} {[%emt 00:08:31]} 28.
Qd2 {[%clk 00:49:06]} {[%emt 00:03:44]} f6 {[%clk 00:32:36]} {[%emt 00:00:25]}
29. Nd3 {[%clk 00:46:49]} {[%emt 00:02:46]} e5 {[%clk 00:29:36]} {[%emt
00:03:30]} 30. Bc5 {[%clk 00:45:29]} {[%emt 00:01:51]} Bxc5 {[%clk 00:28:01]}
{[%emt 00:02:05]} 31. bxc5 {[%clk 00:45:41]} {[%emt 00:00:17]} Kh8 {[%clk
00:27:06]} {[%emt 00:01:26]} 32. Qc2 {[%clk 00:39:15]} {[%emt 00:06:55]} Nxc3
{[%clk 00:25:55]} {[%emt 00:01:41]} 33. Qxc3 {[%clk 00:39:18]} {[%emt
00:00:27]} Bxf3 {[%clk 00:26:23]} {[%emt 00:00:02]} 34. Rb1 {[%clk 00:39:14]}
{[%emt 00:00:34]} Bd5 {[%clk 00:23:06]} {[%emt 00:03:47]} 35. h3 {[%clk
00:31:18]} {[%emt 00:08:26]} e4 {[%clk 00:20:31]} {[%emt 00:03:06]} 36. Nb4
{[%clk 00:30:34]} {[%emt 00:01:14]} Rxb5 {[%clk 00:20:09]} {[%emt 00:00:52]} 37.
Nxd5 {[%clk 00:30:37]} {[%emt 00:00:27]} Rxc5 {[%clk 00:20:36]} {[%emt
00:00:03]} 38. Nxc7 {[%clk 00:30:07]} {[%emt 00:01:00]} Rxc3 {[%clk 00:20:50]}
{[%emt 00:00:16]} 39. Rb7 {[%clk 00:26:50]} {[%emt 00:03:47]} f5 {[%clk
00:14:24]} {[%emt 00:06:56]} 40. Ra1 {[%clk 00:55:51]} {[%emt 00:01:30]} Rc2
{[%clk 00:38:53]} {[%emt 00:06:00]} 41. Nb5 {[%clk 00:51:57]} {[%emt 00:04:25]}
Ne6 {[%clk 00:35:40]} {[%emt 00:03:42]} 42. Na3 {[%clk 00:48:59]} {[%emt
00:03:29]} Re2 {[%clk 00:34:07]} {[%emt 00:02:03]} 43. Nc4 {[%clk 00:48:58]}
{[%emt 00:00:31]} f4 {[%clk 00:30:15]} {[%emt 00:04:22]} 44. Re7 {[%clk
00:47:39]} {[%emt 00:01:49]} Nd4 {[%clk 00:26:46]} {[%emt 00:03:59]} 45. Ne5
{[%clk 00:46:35]} {[%emt 00:01:34]} Kg8 {[%clk 00:26:54]} {[%emt 00:00:22]} 46.
Ng6 {[%clk 00:35:27]} {[%emt 00:11:37]} e3 {[%clk 00:14:11]} {[%emt 00:13:13]}
47. fxe3 {[%clk 00:34:53]} {[%emt 00:01:04]} Rxe3 {[%clk 00:14:06]} {[%emt
00:00:35]} 48. Raa7 {[%clk 00:34:03]} {[%emt 00:01:20]} Rxe7 {[%clk 00:10:21]}
{[%emt 00:04:16]} 49. Rxe7 {[%clk 00:33:17]} {[%emt 00:01:15]} f3 {[%clk
00:09:56]} {[%emt 00:00:54]} 50. gxf3 {[%clk 00:33:02]} {[%emt 00:00:45]}
1/2-1/2

[Event "Senior Men Russian Championship 2022_1L"]
[Site "Olginka, Russia"]
[Date "2022.09.27"]
[Round "4.8"]
[White "Bebchuk, Boris"]
[Black "Ananchenko, Igor"]
[Result "1-0"]
[TimeControl "90min/40moves+30min/end+30sec increment per move starting from move 1"]
[BlackFideId "4128800"]
[WhiteElo "2089"]
[BlackElo "1974"]

1. d4 {[%clk 01:30:51]} {[%emt 00:00:05]} Nf6 {[%clk 01:30:52]} {[%emt
00:00:10]} 2. c4 {[%clk 01:31:14]} {[%emt 00:00:07]} g6 {[%clk 01:31:07]}
{[%emt 00:00:15]} 3. Nc3 {[%clk 01:31:37]} {[%emt 00:00:07]} Bg7 {[%clk
01:31:20]} {[%emt 00:00:18]} 4. e4 {[%clk 01:31:59]} {[%emt 00:00:07]} O-O
{[%clk 01:31:40]} {[%emt 00:00:10]} 5. Be2 {[%clk 01:30:29]} {[%emt 00:02:00]}
d6 {[%clk 01:31:57]} {[%emt 00:00:14]} 6. Nf3 {[%clk 01:28:34]} {[%emt
00:02:25]} e5 {[%clk 01:32:10]} {[%emt 00:00:17]} 7. O-O {[%clk 01:26:39]}
{[%emt 00:02:24]} Nc6 {[%clk 01:32:14]} {[%emt 00:00:27]} 8. d5 {[%clk
01:26:38]} {[%emt 00:00:31]} Ne7 {[%clk 01:32:30]} {[%emt 00:00:15]} 9. Ne1
{[%clk 01:26:44]} {[%emt 00:00:24]} Nd7 {[%clk 01:31:15]} {[%emt 00:01:46]} 10.
Be3 {[%clk 01:26:27]} {[%emt 00:00:45]} f5 {[%clk 01:31:28]} {[%emt 00:00:17]}
11. f3 {[%clk 01:26:55]} {[%emt 00:00:02]} f4 {[%clk 01:30:56]} {[%emt
00:01:03]} 12. Bf2 {[%clk 01:27:23]} {[%emt 00:00:01]} g5 {[%clk 01:30:11]}
{[%emt 00:01:15]} 13. Nd3 {[%clk 01:27:43]} {[%emt 00:00:10]} Nf6 {[%clk
01:29:11]} {[%emt 00:01:30]} 14. c5 {[%clk 01:27:56]} {[%emt 00:00:17]} Rf7
{[%clk 01:27:53]} {[%emt 00:01:48]} 15. Rc1 {[%clk 01:28:03]} {[%emt 00:00:22]}
Ng6 {[%clk 01:25:04]} {[%emt 00:03:20]} 16. Nb5 {[%clk 01:26:17]} {[%emt
00:02:15]} Bd7 {[%clk 01:14:38]} {[%emt 00:10:58]} 17. Nxa7 {[%clk 01:20:54]}
{[%emt 00:05:53]} Rxa7 {[%clk 01:05:55]} {[%emt 00:09:14]} 18. c6 {[%clk
01:20:49]} {[%emt 00:00:34]} bxc6 {[%clk 01:05:18]} {[%emt 00:01:07]} 19. dxc6
{[%clk 01:20:48]} {[%emt 00:00:31]} Be6 {[%clk 01:00:23]} {[%emt 00:05:25]} 20.
Bxa7 {[%clk 01:20:56]} {[%emt 00:00:22]} g4 {[%clk 00:59:51]} {[%emt 00:01:02]}
21. Nc5 {[%clk 01:17:40]} {[%emt 00:03:46]} Qa8 {[%clk 00:42:06]} {[%emt
00:18:15]} 22. Nxe6 {[%clk 01:16:56]} {[%emt 00:01:14]} gxf3 {[%clk 00:41:40]}
{[%emt 00:00:57]} 23. gxf3 {[%clk 01:16:36]} {[%emt 00:00:49]} Qxa7+ {[%clk
00:41:58]} {[%emt 00:00:13]} 24. Kh1 {[%clk 01:14:17]} {[%emt 00:02:48]} Kh8
{[%clk 00:39:02]} {[%emt 00:03:27]} 25. Bc4 {[%clk 01:12:20]} {[%emt 00:02:27]}
Bh6 {[%clk 00:33:21]} {[%emt 00:06:11]} 26. Rc3 {[%clk 01:10:48]} {[%emt
00:02:02]} Re7 {[%clk 00:30:12]} {[%emt 00:03:40]} 27. Qb3 {[%clk 01:09:35]}
{[%emt 00:01:43]} Qa8 {[%clk 00:29:20]} {[%emt 00:01:23]} 28. Qb7 {[%clk
01:08:55]} {[%emt 00:01:10]} Qg8 {[%clk 00:27:22]} {[%emt 00:02:27]} 29. Nxf4
{[%clk 01:04:42]} {[%emt 00:04:43]} Qg7 {[%clk 00:26:19]} {[%emt 00:01:33]} 30.
Nxg6+ {[%clk 01:05:00]} {[%emt 00:00:12]} Qxg6 {[%clk 00:25:16]} {[%emt
00:01:33]} 31. Qc8+ {[%clk 01:04:39]} {[%emt 00:00:51]} Re8 {[%clk 00:23:01]}
{[%emt 00:02:45]} 32. Qh3 {[%clk 01:02:22]} {[%emt 00:02:44]} Bg5 {[%clk
00:19:11]} {[%emt 00:04:23]} 33. Rg1 {[%clk 01:01:52]} {[%emt 00:01:00]} d5
{[%clk 00:18:55]} {[%emt 00:00:46]} 34. Bxd5 {[%clk 01:01:43]} {[%emt
00:00:39]} Nxd5 {[%clk 00:18:24]} {[%emt 00:01:01]} 35. exd5 {[%clk 01:02:12]}
{[%emt 00:00:01]} Qf6 {[%clk 00:17:41]} {[%emt 00:01:13]} 36. d6 {[%clk
01:01:48]} {[%emt 00:00:54]} Qxd6 {[%clk 00:15:06]} {[%emt 00:03:05]} 37. Rxg5
{[%clk 01:01:53]} {[%emt 00:00:26]} Qf6 {[%clk 00:14:18]} {[%emt 00:01:17]} 38.
Qf5 {[%clk 00:59:53]} {[%emt 00:02:30]} Qd6 {[%clk 00:14:25]} {[%emt 00:00:23]}
39. Rd3 {[%clk 00:59:26]} {[%emt 00:00:56]} Qh6 {[%clk 00:14:07]} {[%emt
00:00:49]} 40. Rd7 {[%clk 01:29:18]} {[%emt 00:00:37]} 1-0

[Event "Senior Men Russian Championship 2022_1L"]
[Site "Olginka, Russia"]
[Date "????.??.??"]
[Round "5.1"]
[White "Rodin, Mihail"]
[Black "Kolomensky, Vladimir"]
[Result "1-0"]
[TimeControl "90min/40moves+30min/end+30sec increment per move starting from move 1"]
[BlackTitle "FM"]
[WhiteFideId "4113160"]
[BlackFideId "4123565"]
[WhiteElo "2320"]
[BlackElo "2055"]

1. e4 {[%clk 01:30:22]} {[%emt 00:00:37]} c5 {[%clk 01:30:53]} {[%emt
00:00:08]} 2. Nf3 {[%clk 01:30:30]} {[%emt 00:00:22]} e6 {[%clk 01:31:16]}
{[%emt 00:00:07]} 3. d4 {[%clk 01:30:56]} {[%emt 00:00:04]} cxd4 {[%clk
01:31:39]} {[%emt 00:00:07]} 4. Nxd4 {[%clk 01:31:23]} {[%emt 00:00:03]} a6
{[%clk 01:32:02]} {[%emt 00:00:07]} 5. Bd3 {[%clk 01:31:44]} {[%emt 00:00:07]}
g6 {[%clk 01:32:05]} {[%emt 00:00:28]} 6. Be3 {[%clk 01:29:45]} {[%emt
00:02:28]} Bg7 {[%clk 01:32:22]} {[%emt 00:00:14]} 7. Qd2 {[%clk 01:29:50]}
{[%emt 00:00:25]} Ne7 {[%clk 01:30:01]} {[%emt 00:02:51]} 8. Nc3 {[%clk
01:30:09]} {[%emt 00:00:11]} d5 {[%clk 01:28:16]} {[%emt 00:02:14]} 9. exd5
{[%clk 01:30:22]} {[%emt 00:00:17]} Nxd5 {[%clk 01:27:51]} {[%emt 00:00:56]} 10.
Nxd5 {[%clk 01:26:52]} {[%emt 00:04:00]} Qxd5 {[%clk 01:28:05]} {[%emt
00:00:16]} 11. O-O {[%clk 01:26:58]} {[%emt 00:00:23]} Nd7 {[%clk 01:18:43]}
{[%emt 00:09:53]} 12. Be2 {[%clk 01:21:39]} {[%emt 00:05:48]} O-O {[%clk
01:09:36]} {[%emt 00:09:39]} 13. Rfd1 {[%clk 01:20:53]} {[%emt 00:01:15]} Ne5
{[%clk 00:46:22]} {[%emt 00:23:45]} 14. Qc1 {[%clk 00:40:49]} {[%emt 00:40:33]}
Qa5 {[%clk 00:33:13]} {[%emt 00:13:40]} 15. Bh6 {[%clk 00:39:36]} {[%emt
00:01:42]} Rd8 {[%clk 00:24:42]} {[%emt 00:09:02]} 16. Bxg7 {[%clk 00:38:04]}
{[%emt 00:02:02]} Kxg7 {[%clk 00:25:10]} {[%emt 00:00:03]} 17. b4 {[%clk
00:33:34]} {[%emt 00:04:59]} Qc7 {[%clk 00:24:40]} {[%emt 00:00:59]} 18. c4
{[%clk 00:33:40]} {[%emt 00:00:25]} Bd7 {[%clk 00:21:28]} {[%emt 00:03:42]} 19.
h4 {[%clk 00:32:11]} {[%emt 00:01:58]} Ba4 {[%clk 00:20:55]} {[%emt 00:01:03]}
20. Rd2 {[%clk 00:32:05]} {[%emt 00:00:35]} Qe7 {[%clk 00:12:55]} {[%emt
00:08:31]} 21. Qa3 {[%clk 00:25:58]} {[%emt 00:06:36]} Qxh4 {[%clk 00:04:50]}
{[%emt 00:08:35]} 22. g3 {[%clk 00:26:16]} {[%emt 00:00:12]} Qf6 {[%clk
00:05:03]} {[%emt 00:00:17]} 23. Qxa4 {[%clk 00:26:19]} {[%emt 00:00:27]} Nc6
{[%clk 00:05:08]} {[%emt 00:00:25]} 24. Nxe6+ {[%clk 00:25:21]} {[%emt
00:01:28]} fxe6 {[%clk 00:05:11]} {[%emt 00:00:27]} 25. Rad1 {[%clk 00:25:48]}
{[%emt 00:00:02]} Nd4 {[%clk 00:04:51]} {[%emt 00:00:51]} 26. Kg2 {[%clk
00:21:15]} {[%emt 00:05:03]} e5 {[%clk 00:04:38]} {[%emt 00:00:43]} 27. c5
{[%clk 00:19:18]} {[%emt 00:02:27]} e4 {[%clk 00:03:29]} {[%emt 00:01:40]} 28.
Re1 {[%clk 00:12:30]} {[%emt 00:07:16]} Kh8 {[%clk 00:02:07]} {[%emt 00:01:52]}
29. Qd1 {[%clk 00:11:42]} {[%emt 00:01:18]} Nf3 {[%clk 00:01:52]} {[%emt
00:00:46]} 30. Bxf3 {[%clk 00:12:00]} {[%emt 00:00:11]} exf3+ {[%clk 00:01:24]}
{[%emt 00:00:58]} 31. Kg1 {[%clk 00:12:15]} {[%emt 00:00:14]} Rxd2 {[%clk
00:01:25]} {[%emt 00:00:31]} 32. Qxd2 {[%clk 00:12:43]} {[%emt 00:00:02]} Rd8
{[%clk 00:01:36]} {[%emt 00:00:19]} 33. Qe3 {[%clk 00:11:59]} {[%emt 00:01:13]}
h5 {[%clk 00:01:06]} {[%emt 00:01:00]} 34. Qe4 {[%clk 00:10:19]} {[%emt
00:02:09]} Qf7 {[%clk 00:01:03]} {[%emt 00:00:33]} 35. Re3 {[%clk 00:05:58]}
{[%emt 00:04:51]} Rf8 {[%clk 00:01:01]} {[%emt 00:00:32]} 36. a4 {[%clk
00:05:18]} {[%emt 00:01:10]} Kh7 {[%clk 00:01:02]} {[%emt 00:00:29]} 37. b5
{[%clk 00:05:29]} {[%emt 00:00:19]} axb5 {[%clk 00:01:28]} {[%emt 00:00:04]} 38.
axb5 {[%clk 00:05:56]} {[%emt 00:00:02]} Qd7 {[%clk 00:01:02]} {[%emt
00:00:56]} 39. Qe7+ {[%clk 00:05:45]} {[%emt 00:00:41]} Rf7 {[%clk 00:01:05]}
{[%emt 00:00:28]} 40. Qxd7 {[%clk 00:36:12]} {[%emt 00:00:02]} Rxd7 {[%clk
00:31:32]} {[%emt 00:00:04]} 41. Rxf3 {[%clk 00:36:29]} {[%emt 00:00:13]} Rd1+
{[%clk 00:30:22]} {[%emt 00:01:39]} 42. Kg2 {[%clk 00:36:58]} {[%emt 00:00:01]}
Rc1 {[%clk 00:30:42]} {[%emt 00:00:11]} 43. Rf7+ {[%clk 00:37:01]} {[%emt
00:00:26]} Kh6 {[%clk 00:31:11]} {[%emt 00:00:02]} 44. Rc7 {[%clk 00:35:11]}
{[%emt 00:02:19]} Kg5 {[%clk 00:31:12]} {[%emt 00:00:28]} 45. Kf3 {[%clk
00:35:06]} {[%emt 00:00:34]} Kf5 {[%clk 00:30:53]} {[%emt 00:00:50]} 46. Ke3
{[%clk 00:33:47]} {[%emt 00:01:49]} g5 {[%clk 00:30:48]} {[%emt 00:00:36]} 47.
b6 {[%clk 00:33:29]} {[%emt 00:00:49]} h4 {[%clk 00:20:21]} {[%emt 00:10:57]}
48. gxh4 {[%clk 00:33:50]} {[%emt 00:00:08]} gxh4 {[%clk 00:20:50]} {[%emt
00:00:02]} 49. Kd2 {[%clk 00:25:55]} {[%emt 00:08:25]} Rc4 {[%clk 00:20:59]}
{[%emt 00:00:21]} 50. Kd3 {[%clk 00:26:22]} {[%emt 00:00:02]} Rc1 {[%clk
00:21:17]} {[%emt 00:00:12]} 51. Rxb7 {[%clk 00:26:33]} {[%emt 00:00:19]} Rxc5
{[%clk 00:21:41]} {[%emt 00:00:06]} 52. Rb8 {[%clk 00:26:20]} {[%emt 00:00:44]}
h3 {[%clk 00:17:28]} 53. Rh8 {[%clk 00:26:20]} Ke4+ 54. Kxe4 1-0

[Event "Senior Men Russian Championship 2022_1L"]
[Site "Olginka, Russia"]
[Date "????.??.??"]
[Round "5.2"]
[White "Kovalev, Evgeny"]
[Black "Dmitriev, Igor"]
[Result "1-0"]
[TimeControl "90min/40moves+30min/end+30sec increment per move starting from move 1"]
[BlackTitle "IM"]
[BlackFideId "4114833"]
[WhiteElo "2048"]
[BlackElo "2174"]

1. d4 {[%clk 01:30:56]} {[%emt 00:00:02]} a6 {[%clk 01:29:54]} {[%emt
00:01:07]} 2. g3 {[%clk 01:31:12]} {[%emt 00:00:14]} d5 {[%clk 01:29:23]}
{[%emt 00:01:01]} 3. Bg2 {[%clk 01:31:18]} {[%emt 00:00:25]} Nc6 {[%clk
01:29:12]} {[%emt 00:00:41]} 4. Nf3 {[%clk 01:31:27]} {[%emt 00:00:21]} Bg4
{[%clk 01:28:52]} {[%emt 00:00:50]} 5. Bf4 {[%clk 01:29:24]} {[%emt 00:02:33]}
e6 {[%clk 01:28:44]} {[%emt 00:00:38]} 6. Nbd2 {[%clk 01:28:40]} {[%emt
00:01:15]} Nf6 {[%clk 01:25:58]} {[%emt 00:03:15]} 7. O-O {[%clk 01:27:36]}
{[%emt 00:01:34]} Be7 {[%clk 01:25:00]} {[%emt 00:01:27]} 8. c3 {[%clk
01:24:18]} {[%emt 00:03:49]} h6 {[%clk 01:20:12]} {[%emt 00:05:18]} 9. b4
{[%clk 01:19:54]} {[%emt 00:04:55]} O-O {[%clk 01:20:07]} {[%emt 00:00:34]} 10.
a4 {[%clk 01:16:49]} {[%emt 00:03:36]} Nh5 {[%clk 01:15:20]} {[%emt 00:05:15]}
11. Nb3 {[%clk 01:12:31]} {[%emt 00:04:49]} Nxf4 {[%clk 01:14:47]} {[%emt
00:01:03]} 12. gxf4 {[%clk 01:12:55]} {[%emt 00:00:06]} Bxf3 {[%clk 01:08:05]}
{[%emt 00:07:12]} 13. Bxf3 {[%clk 01:12:55]} {[%emt 00:00:31]} Bd6 {[%clk
01:08:20]} {[%emt 00:00:15]} 14. e3 {[%clk 01:11:21]} {[%emt 00:02:04]} Qh4
{[%clk 01:07:18]} {[%emt 00:01:31]} 15. Kh1 {[%clk 01:08:30]} {[%emt 00:03:23]}
a5 {[%clk 01:01:43]} {[%emt 00:06:05]} 16. b5 {[%clk 01:08:04]} {[%emt
00:00:56]} Ne7 {[%clk 01:01:59]} {[%emt 00:00:14]} 17. Qe2 {[%clk 01:05:14]}
{[%emt 00:03:21]} c6 {[%clk 00:56:19]} {[%emt 00:06:09]} 18. Rg1 {[%clk
01:00:56]} {[%emt 00:04:48]} Rfc8 {[%clk 00:55:25]} {[%emt 00:01:24]} 19. b6
{[%clk 00:59:24]} {[%emt 00:02:02]} Kf8 {[%clk 00:46:58]} {[%emt 00:08:57]} 20.
Nc1 {[%clk 00:51:12]} {[%emt 00:08:42]} c5 {[%clk 00:45:41]} {[%emt 00:01:46]}
21. Nd3 {[%clk 00:50:53]} {[%emt 00:00:50]} cxd4 {[%clk 00:39:24]} {[%emt
00:06:47]} 22. cxd4 {[%clk 00:51:11]} {[%emt 00:00:13]} Rc6 {[%clk 00:39:37]}
{[%emt 00:00:15]} 23. Ne5 {[%clk 00:40:00]} {[%emt 00:11:41]} Bxe5 {[%clk
00:39:23]} {[%emt 00:00:45]} 24. fxe5 {[%clk 00:40:22]} {[%emt 00:00:09]} Nf5
{[%clk 00:37:17]} {[%emt 00:02:34]} 25. Rgc1 {[%clk 00:39:29]} {[%emt
00:01:24]} Rxb6 {[%clk 00:33:21]} {[%emt 00:04:26]} 26. Rab1 {[%clk 00:36:58]}
{[%emt 00:03:01]} Rxb1 {[%clk 00:33:13]} {[%emt 00:00:39]} 27. Rxb1 {[%clk
00:37:22]} {[%emt 00:00:06]} Rb8 {[%clk 00:28:37]} {[%emt 00:05:04]} 28. Qc2
{[%clk 00:36:14]} {[%emt 00:01:38]} Qd8 {[%clk 00:27:43]} {[%emt 00:01:24]} 29.
Bg4 {[%clk 00:33:03]} {[%emt 00:03:41]} Ne7 {[%clk 00:28:01]} {[%emt 00:00:12]}
30. f4 {[%clk 00:31:17]} {[%emt 00:02:17]} g6 {[%clk 00:28:17]} {[%emt
00:00:14]} 31. Kg2 {[%clk 00:29:54]} {[%emt 00:01:52]} Kg7 {[%clk 00:28:00]}
{[%emt 00:00:46]} 32. Rb5 {[%clk 00:29:15]} {[%emt 00:01:10]} h5 {[%clk
00:28:00]} {[%emt 00:00:30]} 33. Bh3 {[%clk 00:28:52]} {[%emt 00:00:53]} b6
{[%clk 00:26:44]} {[%emt 00:01:45]} 34. Kf3 {[%clk 00:28:12]} {[%emt 00:01:10]}
Rc8 {[%clk 00:26:55]} {[%emt 00:00:19]} 35. Qb2 {[%clk 00:26:26]} {[%emt
00:02:17]} Rc6 {[%clk 00:27:17]} {[%emt 00:00:08]} 36. Qg2 {[%clk 00:26:45]}
{[%emt 00:00:11]} Qc7 {[%clk 00:18:31]} {[%emt 00:09:15]} 37. Rb2 {[%clk
00:24:31]} {[%emt 00:02:44]} Rc3 {[%clk 00:17:03]} {[%emt 00:01:58]} 38. Rd2
{[%clk 00:23:43]} {[%emt 00:01:18]} Kh7 {[%clk 00:13:18]} {[%emt 00:04:14]} 39.
Qg5 {[%clk 00:23:11]} {[%emt 00:01:01]} Ng8 {[%clk 00:13:07]} {[%emt 00:00:42]}
40. f5 {[%clk 00:52:48]} {[%emt 00:00:54]} exf5 {[%clk 00:42:51]} {[%emt
00:00:45]} 41. Bxf5 {[%clk 00:53:00]} {[%emt 00:00:18]} Qc4 {[%clk 00:41:53]}
{[%emt 00:01:27]} 42. e6 {[%clk 00:46:52]} {[%emt 00:06:38]} Qf1+ {[%clk
00:41:41]} {[%emt 00:00:41]} 43. Rf2 {[%clk 00:46:45]} {[%emt 00:00:37]} Qh1+
{[%clk 00:37:55]} {[%emt 00:04:17]} 44. Rg2 {[%clk 00:46:31]} {[%emt 00:00:45]}
Qf1+ {[%clk 00:35:52]} {[%emt 00:02:32]} 45. Rf2 {[%clk 00:45:19]} {[%emt
00:01:42]} Qd1+ {[%clk 00:30:48]} {[%emt 00:05:34]} 46. Kf4 {[%clk 00:39:32]}
{[%emt 00:06:17]} Rxe3 {[%clk 00:25:26]} {[%emt 00:05:53]} 47. Kxe3 {[%clk
00:35:20]} {[%emt 00:04:42]} Qc1+ {[%clk 00:25:36]} {[%emt 00:00:20]} 48. Rd2
{[%clk 00:35:30]} {[%emt 00:00:20]} Nh6 {[%clk 00:22:27]} {[%emt 00:03:38]} 49.
exf7 {[%clk 00:28:26]} {[%emt 00:07:33]} Nxf5+ {[%clk 00:21:04]} {[%emt
00:01:54]} 50. Qxf5 {[%clk 00:26:50]} {[%emt 00:02:06]} gxf5 {[%clk 00:20:38]}
{[%emt 00:00:55]} 51. f8=Q {[%clk 00:27:06]} {[%emt 00:00:14]} Qe1+ {[%clk
00:20:57]} {[%emt 00:00:12]} 52. Re2 {[%clk 00:26:16]} {[%emt 00:01:20]} Qg1+
{[%clk 00:21:00]} {[%emt 00:00:26]} 53. Kd3 {[%clk 00:25:27]} {[%emt 00:01:19]}
Qd1+ {[%clk 00:20:56]} {[%emt 00:00:34]} 54. Rd2 {[%clk 00:25:26]} {[%emt
00:00:32]} Qf1+ {[%clk 00:21:02]} {[%emt 00:00:23]} 55. Kc2 {[%clk 00:25:07]}
1-0